[Event "Early-Titled-Tuesday-Blitz-February-06-2024"]
[Site "Chess.com"]
[Date "2024.02.06"]
[Round "2"]
[White "Ariadna_Atreides"]
[Black "iJueles"]
[Result "0-1"]
[WhiteElo "2186"]
[BlackElo "2454"]
[TimeControl "180+1"]
[EndTime "8:17:19 PST"]
[Termination "iJueles won on time"]

1. d4 {[%clk 0:03:00.9]} 1... Nf6 {[%clk 0:02:57]} 2. Nf3 {[%clk 0:03:00.9]}
2... e6 {[%clk 0:02:55.7]} 3. e3 {[%clk 0:03:00.9]} 3... b6 {[%clk 0:02:55.3]}
4. Bd3 {[%clk 0:03:00.3]} 4... Bb7 {[%clk 0:02:55.6]} 5. Nbd2 {[%clk 0:03:00.9]}
5... c5 {[%clk 0:02:53.9]} 6. b3 {[%clk 0:02:59.1]} 6... Nc6 {[%clk 0:02:53.1]}
7. Bb2 {[%clk 0:02:58.4]} 7... Be7 {[%clk 0:02:53.4]} 8. O-O {[%clk 0:02:57.4]}
8... d6 {[%clk 0:02:53.2]} 9. c4 {[%clk 0:02:55.4]} 9... O-O {[%clk 0:02:52.7]}
10. Rc1 {[%clk 0:02:54.6]} 10... Qc7 {[%clk 0:02:47.7]} 11. Bb1 {[%clk
0:02:44.5]} 11... Rfd8 {[%clk 0:02:36.6]} 12. Ng5 {[%clk 0:02:21.9]} 12... h6
{[%clk 0:02:34.8]} 13. Nge4 {[%clk 0:02:21.7]} 13... Nxe4 {[%clk 0:02:32.1]} 14.
Nxe4 {[%clk 0:02:21.5]} 14... f5 {[%clk 0:01:23.4]} 15. d5 {[%clk 0:02:07.2]}
15... fxe4 {[%clk 0:01:19.2]} 16. dxc6 {[%clk 0:02:04.9]} 16... Bxc6 {[%clk
0:01:17.4]} 17. Qg4 {[%clk 0:02:04.7]} 17... Bf8 {[%clk 0:01:09.9]} 18. Qxe6+
{[%clk 0:02:00.6]} 18... Qf7 {[%clk 0:01:10.1]} 19. Qg4 {[%clk 0:01:48.6]} 19...
Re8 {[%clk 0:00:59.9]} 20. Rcd1 {[%clk 0:01:37.4]} 20... Rad8 {[%clk 0:00:58.4]}
21. a3 {[%clk 0:01:17.8]} 21... Re6 {[%clk 0:00:55.8]} 22. f4 {[%clk 0:00:54.7]}
22... exf3 {[%clk 0:00:50.5]} 23. gxf3 {[%clk 0:00:53.2]} 23... Rxe3 {[%clk
0:00:39.1]} 24. Be4 {[%clk 0:00:42.3]} 24... Bxe4 {[%clk 0:00:30.6]} 25. fxe4
{[%clk 0:00:42.4]} 25... Qd7 {[%clk 0:00:30.4]} 26. Qg6 {[%clk 0:00:21.8]} 26...
Rxb3 {[%clk 0:00:25.8]} 27. Rxf8+ {[%clk 0:00:09.7]} 27... Kxf8 {[%clk
0:00:24.6]} 28. Rf1+ {[%clk 0:00:06.4]} 28... Kg8 {[%clk 0:00:25]} 29. Ba1
{[%clk 0:00:05]} 29... Rxa3 {[%clk 0:00:19.7]} 30. e5 {[%clk 0:00:02.9]} 30...
Rxa1 {[%clk 0:00:18]} 31. Rxa1 {[%clk 0:00:01.9]} 31... dxe5 {[%clk 0:00:17.8]}
32. Rf1 {[%clk 0:00:01.9]} 32... Qd4+ {[%clk 0:00:17.9]} 0-1

[Event "Early-Titled-Tuesday-Blitz-February-06-2024"]
[Site "Chess.com"]
[Date "2024.02.06"]
[Round "2"]
[White "PawnEatingZombie"]
[Black "atalz0"]
[Result "0-1"]
[WhiteElo "2209"]
[BlackElo "2470"]
[TimeControl "180+1"]
[EndTime "8:17:21 PST"]
[Termination "atalz0 won by resignation"]

1. e4 {[%clk 0:03:00.9]} 1... d5 {[%clk 0:02:59.3]} 2. exd5 {[%clk 0:03:00.5]}
2... Nf6 {[%clk 0:03:00]} 3. Bb5+ {[%clk 0:02:55.7]} 3... Bd7 {[%clk 0:02:59.6]}
4. Bc4 {[%clk 0:02:54.2]} 4... Bg4 {[%clk 0:02:59.2]} 5. f3 {[%clk 0:02:50.1]}
5... Bc8 {[%clk 0:02:58.5]} 6. Nc3 {[%clk 0:02:43.3]} 6... Nbd7 {[%clk
0:02:57.8]} 7. Nge2 {[%clk 0:02:29.4]} 7... Nb6 {[%clk 0:02:57]} 8. Bb5+ {[%clk
0:02:28.7]} 8... Bd7 {[%clk 0:02:54.3]} 9. Bxd7+ {[%clk 0:02:27.1]} 9... Qxd7
{[%clk 0:02:55.2]} 10. d3 {[%clk 0:02:18.2]} 10... Nbxd5 {[%clk 0:02:53.9]} 11.
Nxd5 {[%clk 0:02:17.9]} 11... Nxd5 {[%clk 0:02:54.8]} 12. Nc3 {[%clk 0:02:15.3]}
12... g6 {[%clk 0:02:51.2]} 13. Bd2 {[%clk 0:02:06.4]} 13... Bg7 {[%clk
0:02:50.1]} 14. Qe2 {[%clk 0:02:05.4]} 14... O-O {[%clk 0:02:46.5]} 15. O-O
{[%clk 0:01:58.6]} 15... Rfe8 {[%clk 0:02:29.3]} 16. Kh1 {[%clk 0:01:57.5]}
16... Rad8 {[%clk 0:02:16.7]} 17. Rae1 {[%clk 0:01:53.4]} 17... c5 {[%clk
0:02:06.7]} 18. f4 {[%clk 0:01:47.5]} 18... e6 {[%clk 0:02:05.2]} 19. a3 {[%clk
0:01:28.3]} 19... b6 {[%clk 0:01:45]} 20. Qf3 {[%clk 0:00:56.2]} 20... Ne7
{[%clk 0:01:06.6]} 21. g4 {[%clk 0:00:53.9]} 21... Nc6 {[%clk 0:01:01.3]} 22.
Qg2 {[%clk 0:00:32.8]} 22... Nd4 {[%clk 0:00:59.7]} 23. Bc1 {[%clk 0:00:28.1]}
23... f5 {[%clk 0:00:52.4]} 24. h4 {[%clk 0:00:14.5]} 24... fxg4 {[%clk
0:00:25.2]} 25. Qxg4 {[%clk 0:00:13.9]} 25... Nxc2 {[%clk 0:00:25.7]} 26. Re2
{[%clk 0:00:10.2]} 26... Nd4 {[%clk 0:00:13.6]} 27. Rg2 {[%clk 0:00:10.1]} 27...
Nf5 {[%clk 0:00:09.5]} 28. h5 {[%clk 0:00:08.6]} 28... Qxd3 {[%clk 0:00:08.1]}
29. hxg6 {[%clk 0:00:07.3]} 29... Qxf1+ {[%clk 0:00:07.5]} 30. Kh2 {[%clk
0:00:07]} 30... hxg6 {[%clk 0:00:06.8]} 31. Qxg6 {[%clk 0:00:06.8]} 31... Re7
{[%clk 0:00:05.7]} 0-1

[Event "Early-Titled-Tuesday-Blitz-February-06-2024"]
[Site "Chess.com"]
[Date "2024.02.06"]
[Round "2"]
[White "mbojan"]
[Black "biostatistician"]
[Result "1-0"]
[WhiteElo "2874"]
[BlackElo "2598"]
[TimeControl "180+1"]
[EndTime "8:17:23 PST"]
[Termination "mbojan won by resignation"]

1. a3 {[%clk 0:02:30.2]} 1... e5 {[%clk 0:02:59.3]} 2. e3 {[%clk 0:02:30.6]}
2... d5 {[%clk 0:02:59.5]} 3. d4 {[%clk 0:02:31.3]} 3... Nc6 {[%clk 0:02:52.4]}
4. Bb5 {[%clk 0:02:26.9]} 4... e4 {[%clk 0:02:51.5]} 5. c4 {[%clk 0:02:25.9]}
5... a6 {[%clk 0:02:51.8]} 6. Bxc6+ {[%clk 0:02:21.5]} 6... bxc6 {[%clk
0:02:52.7]} 7. Bd2 {[%clk 0:02:16.1]} 7... a5 {[%clk 0:02:51.4]} 8. Qa4 {[%clk
0:02:13.2]} 8... Bd7 {[%clk 0:02:50]} 9. c5 {[%clk 0:02:11.3]} 9... Qb8 {[%clk
0:02:37.9]} 10. Ra2 {[%clk 0:02:00.6]} 10... Nf6 {[%clk 0:02:36.2]} 11. Bxa5
{[%clk 0:01:54.4]} 11... Qa7 {[%clk 0:02:33.7]} 12. b4 {[%clk 0:01:54]} 12...
Be7 {[%clk 0:02:33.8]} 13. Qd1 {[%clk 0:01:49.9]} 13... Bc8 {[%clk 0:02:30.4]}
14. Nc3 {[%clk 0:01:43.9]} 14... Ba6 {[%clk 0:02:30.6]} 15. f4 {[%clk
0:01:39.1]} 15... O-O {[%clk 0:02:26.6]} 16. g4 {[%clk 0:01:37.7]} 16... Bd3
{[%clk 0:02:08.6]} 17. Rg2 {[%clk 0:01:19.6]} 17... Qb7 {[%clk 0:01:44.5]} 18.
Nge2 {[%clk 0:01:15.5]} 18... Qc8 {[%clk 0:01:31.9]} 19. f5 {[%clk 0:01:13.8]}
19... Nd7 {[%clk 0:01:27.2]} 20. Nf4 {[%clk 0:01:11.3]} 20... Bh4+ {[%clk
0:01:24.9]} 21. Kd2 {[%clk 0:01:11.5]} 21... Rxa5 {[%clk 0:01:19.1]} 22. bxa5
{[%clk 0:01:09.5]} 22... Qa6 {[%clk 0:01:20]} 23. Qa4 {[%clk 0:00:30.9]} 23...
Rb8 {[%clk 0:01:19.6]} 24. Kc1 {[%clk 0:00:31.6]} 24... Qb7 {[%clk 0:01:03.6]}
25. Qb4 {[%clk 0:00:30.5]} 25... Qa7 {[%clk 0:00:55.4]} 26. Nxd3 {[%clk
0:00:20.5]} 26... Rxb4 {[%clk 0:00:50]} 27. Nxb4 {[%clk 0:00:21.4]} 27... Qxa5
{[%clk 0:00:49.8]} 28. Kb2 {[%clk 0:00:22]} 28... Bf6 {[%clk 0:00:45.4]} 29.
Nxc6 {[%clk 0:00:19]} 29... Qa6 {[%clk 0:00:42.6]} 30. Nb4 {[%clk 0:00:18.9]}
30... Qc4 {[%clk 0:00:42.6]} 31. Rc1 {[%clk 0:00:16.6]} 31... h6 {[%clk
0:00:38.2]} 32. Ncxd5 {[%clk 0:00:16.8]} 32... Qb5 {[%clk 0:00:33.5]} 33. Nxc7
{[%clk 0:00:12.4]} 33... Qb7 {[%clk 0:00:29.6]} 34. Nd5 {[%clk 0:00:12.5]} 34...
Qc8 {[%clk 0:00:26.1]} 35. c6 {[%clk 0:00:12.6]} 35... Nb8 {[%clk 0:00:26]} 36.
c7 {[%clk 0:00:12.7]} 36... Na6 {[%clk 0:00:26]} 37. Nxa6 {[%clk 0:00:11.8]}
37... Qb7+ {[%clk 0:00:24.6]} 38. Nab4 {[%clk 0:00:12]} 1-0

[Event "Early-Titled-Tuesday-Blitz-February-06-2024"]
[Site "Chess.com"]
[Date "2024.02.06"]
[Round "2"]
[White "casparov00000"]
[Black "ArturoCaceres"]
[Result "0-1"]
[WhiteElo "2317"]
[BlackElo "2515"]
[TimeControl "180+1"]
[EndTime "8:17:24 PST"]
[Termination "ArturoCaceres won by checkmate"]

1. e4 {[%clk 0:02:59.5]} 1... c5 {[%clk 0:02:58.3]} 2. c3 {[%clk 0:02:59.8]}
2... b6 {[%clk 0:02:53]} 3. d4 {[%clk 0:03:00.2]} 3... cxd4 {[%clk 0:02:53.9]}
4. cxd4 {[%clk 0:03:00.4]} 4... Bb7 {[%clk 0:02:54.8]} 5. Bd3 {[%clk 0:03:00.9]}
5... d5 {[%clk 0:02:54.6]} 6. e5 {[%clk 0:03:01]} 6... Qd7 {[%clk 0:02:53.5]} 7.
Nf3 {[%clk 0:03:00.4]} 7... Ba6 {[%clk 0:02:54]} 8. O-O {[%clk 0:03:00.3]} 8...
e6 {[%clk 0:02:54]} 9. Nc3 {[%clk 0:03:00.8]} 9... Bxd3 {[%clk 0:02:54.3]} 10.
Qxd3 {[%clk 0:03:00.9]} 10... Ne7 {[%clk 0:02:52.4]} 11. a4 {[%clk 0:03:01.2]}
11... Nbc6 {[%clk 0:02:51.6]} 12. Nb5 {[%clk 0:02:57]} 12... Ng6 {[%clk
0:02:51.5]} 13. h4 {[%clk 0:02:56]} 13... h5 {[%clk 0:02:51.7]} 14. Bg5 {[%clk
0:02:53.9]} 14... a6 {[%clk 0:02:51.8]} 15. Nc3 {[%clk 0:02:48.1]} 15... Bb4
{[%clk 0:02:52.4]} 16. Ne1 {[%clk 0:02:42.5]} 16... Na5 {[%clk 0:02:50.7]} 17.
Nc2 {[%clk 0:02:39.2]} 17... Be7 {[%clk 0:02:49.5]} 18. f4 {[%clk 0:02:30.3]}
18... Nxh4 {[%clk 0:02:49]} 19. Bxh4 {[%clk 0:02:13.7]} 19... Bxh4 {[%clk
0:02:47.1]} 20. f5 {[%clk 0:02:14.6]} 20... Be7 {[%clk 0:02:26.7]} 21. Rf3
{[%clk 0:02:03.1]} 21... exf5 {[%clk 0:02:08.7]} 22. Rxf5 {[%clk 0:02:01.4]}
22... g6 {[%clk 0:02:09.2]} 23. e6 {[%clk 0:01:51.5]} 23... fxe6 {[%clk
0:02:02.9]} 24. Re5 {[%clk 0:01:50.1]} 24... Kf7 {[%clk 0:01:58.1]} 25. Rf1+
{[%clk 0:01:49]} 25... Kg7 {[%clk 0:01:56.9]} 26. Qh3 {[%clk 0:01:35]} 26...
Rhf8 {[%clk 0:01:27.2]} 27. Rfe1 {[%clk 0:01:31.1]} 27... Rf5 {[%clk 0:00:55.6]}
28. Rxe6 {[%clk 0:01:26.5]} 28... Bf6 {[%clk 0:00:52.6]} 29. Qg3 {[%clk
0:01:08.9]} 29... Rf8 {[%clk 0:00:32]} 30. Rd6 {[%clk 0:01:07.7]} 30... Qc7
{[%clk 0:00:24.1]} 31. Re3 {[%clk 0:00:53.9]} 31... Nc4 {[%clk 0:00:22.8]} 32.
Nxd5 {[%clk 0:00:50.4]} 32... Qxd6 {[%clk 0:00:14.8]} 33. Re5 {[%clk 0:00:47.1]}
33... Bxe5 {[%clk 0:00:14.2]} 34. dxe5 {[%clk 0:00:46.5]} 34... Qxd5 {[%clk
0:00:14.7]} 35. e6 {[%clk 0:00:44]} 35... Qxe6 {[%clk 0:00:14.2]} 36. Nd4 {[%clk
0:00:43.3]} 36... Rf1+ {[%clk 0:00:13.7]} 37. Kh2 {[%clk 0:00:43.6]} 37... Qe5
{[%clk 0:00:14.6]} 38. Qxe5+ {[%clk 0:00:41.9]} 38... Nxe5 {[%clk 0:00:15.5]}
39. Ne6+ {[%clk 0:00:42.2]} 39... Kg8 {[%clk 0:00:16.4]} 40. Nxf8 {[%clk
0:00:42.1]} 40... Rxf8 {[%clk 0:00:17.3]} 41. Kg3 {[%clk 0:00:42.6]} 41... a5
{[%clk 0:00:17.9]} 42. Kh4 {[%clk 0:00:42.9]} 42... Kg7 {[%clk 0:00:18.8]} 43.
Kg5 {[%clk 0:00:43.3]} 43... Rc8 {[%clk 0:00:15.9]} 44. b3 {[%clk 0:00:43.1]}
44... Rd8 {[%clk 0:00:15.8]} 45. b4 {[%clk 0:00:43.4]} 45... Rd4 {[%clk
0:00:15.7]} 46. bxa5 {[%clk 0:00:43.7]} 46... Rg4# {[%clk 0:00:16.6]} 0-1

[Event "Early-Titled-Tuesday-Blitz-February-06-2024"]
[Site "Chess.com"]
[Date "2024.02.06"]
[Round "2"]
[White "Talent-OF-Slovenia"]
[Black "lluiss"]
[Result "1-0"]
[WhiteElo "2438"]
[BlackElo "2144"]
[TimeControl "180+1"]
[EndTime "8:17:25 PST"]
[Termination "Talent-OF-Slovenia won on time"]

1. e4 {[%clk 0:03:00.9]} 1... e6 {[%clk 0:02:58.6]} 2. d4 {[%clk 0:02:59.9]}
2... d5 {[%clk 0:02:58.6]} 3. Nd2 {[%clk 0:03:00.6]} 3... Nf6 {[%clk 0:02:57.5]}
4. e5 {[%clk 0:03:00.9]} 4... Nfd7 {[%clk 0:02:57.5]} 5. Ngf3 {[%clk 0:03:01.6]}
5... b6 {[%clk 0:02:57]} 6. c3 {[%clk 0:03:01.5]} 6... Ba6 {[%clk 0:02:55.8]} 7.
Bxa6 {[%clk 0:03:00.6]} 7... Nxa6 {[%clk 0:02:56.7]} 8. O-O {[%clk 0:03:00.5]}
8... Be7 {[%clk 0:02:55.2]} 9. Re1 {[%clk 0:03:00.4]} 9... c5 {[%clk 0:02:52.9]}
10. Nf1 {[%clk 0:02:59.3]} 10... Nab8 {[%clk 0:02:52.5]} 11. g3 {[%clk
0:02:56.2]} 11... Nc6 {[%clk 0:02:50.6]} 12. h4 {[%clk 0:02:55.8]} 12... h5
{[%clk 0:02:44.7]} 13. Bf4 {[%clk 0:02:53.4]} 13... g6 {[%clk 0:02:44.4]} 14.
Ne3 {[%clk 0:02:37.4]} 14... Kf8 {[%clk 0:02:43.8]} 15. Qe2 {[%clk 0:02:17.2]}
15... Kg7 {[%clk 0:02:43.3]} 16. Rad1 {[%clk 0:02:16.1]} 16... c4 {[%clk
0:02:43.2]} 17. b3 {[%clk 0:02:14.5]} 17... b5 {[%clk 0:02:41.5]} 18. b4 {[%clk
0:02:10.6]} 18... a5 {[%clk 0:02:40]} 19. a3 {[%clk 0:02:10.7]} 19... axb4
{[%clk 0:02:39.8]} 20. axb4 {[%clk 0:02:10.4]} 20... Nb6 {[%clk 0:02:39.6]} 21.
Ng5 {[%clk 0:02:03.8]} 21... Qd7 {[%clk 0:02:28.5]} 22. Kg2 {[%clk 0:02:02.2]}
22... Ra3 {[%clk 0:02:25.4]} 23. Qc2 {[%clk 0:01:59.5]} 23... Rha8 {[%clk
0:02:21.5]} 24. Qb1 {[%clk 0:01:39.2]} 24... Rxc3 {[%clk 0:02:09]} 25. g4 {[%clk
0:01:33.5]} 25... Nxb4 {[%clk 0:01:27.5]} 26. gxh5 {[%clk 0:01:31.9]} 26... Nd3
{[%clk 0:01:27.5]} 27. Bg3 {[%clk 0:01:07.3]} 27... Rb3 {[%clk 0:01:08.2]} 28.
Qc2 {[%clk 0:01:03.1]} 28... Rb2 {[%clk 0:00:56.1]} 29. Qc3 {[%clk 0:00:53.3]}
29... Na4 {[%clk 0:00:48.1]} 30. h6+ {[%clk 0:00:48.4]} 30... Kxh6 {[%clk
0:00:36.9]} 31. Rxd3 {[%clk 0:00:36]} 31... Nxc3 {[%clk 0:00:35.3]} 32. Rxc3
{[%clk 0:00:36.9]} 32... b4 {[%clk 0:00:33.2]} 33. Ng4+ {[%clk 0:00:36.9]} 33...
Kg7 {[%clk 0:00:31.6]} 34. Rf3 {[%clk 0:00:37.8]} 34... Bxg5 {[%clk 0:00:30.3]}
35. hxg5 {[%clk 0:00:37.3]} 35... c3 {[%clk 0:00:17.1]} 36. Nf6 {[%clk
0:00:36.1]} 36... Qb7 {[%clk 0:00:13.7]} 37. Rh1 {[%clk 0:00:33.8]} 37... Rh8
{[%clk 0:00:13.5]} 38. Rxh8 {[%clk 0:00:33.3]} 38... Kxh8 {[%clk 0:00:14.4]} 39.
Bf4 {[%clk 0:00:32.6]} 39... Kg7 {[%clk 0:00:02.2]} 40. Rh3 {[%clk 0:00:31.6]}
1-0

[Event "Early-Titled-Tuesday-Blitz-February-06-2024"]
[Site "Chess.com"]
[Date "2024.02.06"]
[Round "2"]
[White "YurasovMat-2012"]
[Black "NikoTheodorou"]
[Result "0-1"]
[WhiteElo "2666"]
[BlackElo "3068"]
[TimeControl "180+1"]
[EndTime "8:17:26 PST"]
[Termination "NikoTheodorou won on time"]

1. e4 {[%clk 0:03:00.9]} 1... b6 {[%clk 0:03:00.9]} 2. Nf3 {[%clk 0:03:00]} 2...
Bb7 {[%clk 0:03:01.2]} 3. Nc3 {[%clk 0:02:59.2]} 3... d6 {[%clk 0:03:01.8]} 4.
d4 {[%clk 0:02:59]} 4... Nd7 {[%clk 0:03:01.8]} 5. Bc4 {[%clk 0:02:59.2]} 5...
e6 {[%clk 0:03:02.3]} 6. O-O {[%clk 0:02:59.1]} 6... g6 {[%clk 0:03:02.8]} 7.
Qe2 {[%clk 0:02:59.4]} 7... a6 {[%clk 0:03:02.9]} 8. a3 {[%clk 0:02:59]} 8...
Bg7 {[%clk 0:03:03.3]} 9. Rd1 {[%clk 0:02:58.5]} 9... Ne7 {[%clk 0:03:03.8]} 10.
h3 {[%clk 0:02:56.5]} 10... O-O {[%clk 0:03:03.9]} 11. Bf4 {[%clk 0:02:55.7]}
11... h6 {[%clk 0:03:03.9]} 12. Bh2 {[%clk 0:02:54]} 12... g5 {[%clk 0:03:03.3]}
13. Bd3 {[%clk 0:02:51]} 13... Ng6 {[%clk 0:02:50.9]} 14. Qe1 {[%clk 0:02:46.3]}
14... Kh8 {[%clk 0:02:31.7]} 15. Ne2 {[%clk 0:02:44.2]} 15... f5 {[%clk
0:02:28.4]} 16. Ng3 {[%clk 0:02:38]} 16... g4 {[%clk 0:02:16]} 17. exf5 {[%clk
0:02:33.8]} 17... gxf3 {[%clk 0:02:04.7]} 18. fxg6 {[%clk 0:02:21.6]} 18... fxg2
{[%clk 0:02:05]} 19. Qxe6 {[%clk 0:02:18.3]} 19... Nf6 {[%clk 0:01:31.1]} 20.
Nf5 {[%clk 0:01:40.2]} 20... Bc8 {[%clk 0:01:28.6]} 21. Qe2 {[%clk 0:01:38.7]}
21... Bxf5 {[%clk 0:01:22.5]} 22. Bxf5 {[%clk 0:01:37.7]} 22... Nd5 {[%clk
0:01:23.3]} 23. Be4 {[%clk 0:01:34.6]} 23... c6 {[%clk 0:01:13.5]} 24. Bxg2
{[%clk 0:01:26]} 24... Qh4 {[%clk 0:01:11.2]} 25. Qd2 {[%clk 0:01:13.6]} 25...
Nf4 {[%clk 0:01:05.8]} 26. Bxf4 {[%clk 0:00:59.2]} 26... Rxf4 {[%clk 0:01:04.8]}
27. c3 {[%clk 0:00:59]} 27... Raf8 {[%clk 0:01:01.9]} 28. Rf1 {[%clk 0:00:57.3]}
28... R8f6 {[%clk 0:00:42.2]} 29. Rae1 {[%clk 0:00:42.2]} 29... Rxg6 {[%clk
0:00:42.5]} 30. Re8+ {[%clk 0:00:40.5]} 30... Kh7 {[%clk 0:00:42.8]} 31. Qd3
{[%clk 0:00:40.1]} 31... Qg5 {[%clk 0:00:43]} 32. Qg3 {[%clk 0:00:34.9]} 32...
Qf5 {[%clk 0:00:42.6]} 33. Qe3 {[%clk 0:00:24.7]} 33... Qg5 {[%clk 0:00:36.6]}
34. Qg3 {[%clk 0:00:24.2]} 34... Qf5 {[%clk 0:00:37.3]} 35. Qe3 {[%clk
0:00:24.1]} 35... Qd5 {[%clk 0:00:34.5]} 36. f3 {[%clk 0:00:12.1]} 36... Rxd4
{[%clk 0:00:34.7]} 37. Re7 {[%clk 0:00:03.5]} 37... Rd3 {[%clk 0:00:28.9]} 38.
Qe2 {[%clk 0:00:02.7]} 38... Rd2 {[%clk 0:00:27.5]} 0-1

[Event "Early-Titled-Tuesday-Blitz-February-06-2024"]
[Site "Chess.com"]
[Date "2024.02.06"]
[Round "2"]
[White "TregubovP"]
[Black "Laico"]
[Result "1-0"]
[WhiteElo "2690"]
[BlackElo "2389"]
[TimeControl "180+1"]
[EndTime "8:17:26 PST"]
[Termination "TregubovP won on time"]

1. e4 {[%clk 0:03:00.9]} 1... e6 {[%clk 0:02:58]} 2. d4 {[%clk 0:03:00]} 2... d5
{[%clk 0:02:58.3]} 3. exd5 {[%clk 0:03:00]} 3... exd5 {[%clk 0:02:58.3]} 4. Nf3
{[%clk 0:03:00.6]} 4... Nc6 {[%clk 0:02:57.5]} 5. h3 {[%clk 0:02:58.5]} 5... Bf5
{[%clk 0:02:56.5]} 6. Bd3 {[%clk 0:02:57]} 6... Qd7 {[%clk 0:02:56.1]} 7. O-O
{[%clk 0:02:48.2]} 7... O-O-O {[%clk 0:02:54.8]} 8. c3 {[%clk 0:02:48.4]} 8...
f6 {[%clk 0:02:46.1]} 9. b4 {[%clk 0:02:47.9]} 9... g5 {[%clk 0:02:44.7]} 10.
Bxf5 {[%clk 0:02:42.5]} 10... Qxf5 {[%clk 0:02:44.3]} 11. Nfd2 {[%clk
0:02:42.9]} 11... h5 {[%clk 0:02:38.4]} 12. Nb3 {[%clk 0:02:41.8]} 12... Nh6
{[%clk 0:02:22.5]} 13. b5 {[%clk 0:02:41.3]} 13... Ne7 {[%clk 0:02:20.4]} 14.
Nc5 {[%clk 0:02:30.9]} 14... Ng6 {[%clk 0:02:08.8]} 15. Qd3 {[%clk 0:02:06.8]}
15... Bxc5 {[%clk 0:01:42.6]} 16. Qxf5+ {[%clk 0:02:06.7]} 16... Nxf5 {[%clk
0:01:43.5]} 17. dxc5 {[%clk 0:02:07.1]} 17... d4 {[%clk 0:01:28.8]} 18. cxd4
{[%clk 0:02:04.4]} 18... Nxd4 {[%clk 0:01:28.2]} 19. Nc3 {[%clk 0:02:04.5]}
19... Nf4 {[%clk 0:01:21.1]} 20. Bxf4 {[%clk 0:01:58.5]} 20... gxf4 {[%clk
0:01:22]} 21. Rae1 {[%clk 0:01:39.1]} 21... f3 {[%clk 0:00:55.6]} 22. g3 {[%clk
0:01:32.9]} 22... h4 {[%clk 0:00:52.4]} 23. Kh2 {[%clk 0:01:23.5]} 23... hxg3+
{[%clk 0:00:40.1]} 24. fxg3 {[%clk 0:01:23.6]} 24... f5 {[%clk 0:00:38.4]} 25.
Re5 {[%clk 0:01:09.7]} 25... Rxh3+ {[%clk 0:00:37]} 26. Kg1 {[%clk 0:01:07]}
26... Rxg3+ {[%clk 0:00:25.6]} 27. Kf2 {[%clk 0:01:07.1]} 27... f4 {[%clk
0:00:21.7]} 28. Rd1 {[%clk 0:00:54.6]} 28... Rg2+ {[%clk 0:00:15.3]} 29. Kf1
{[%clk 0:00:54.4]} 29... Rc2 {[%clk 0:00:12.7]} 30. Ne4 {[%clk 0:00:43.9]} 30...
Rh8 {[%clk 0:00:12.5]} 31. Nd2 {[%clk 0:00:31.7]} 31... Rh2 {[%clk 0:00:09.1]}
32. Re4 {[%clk 0:00:15.9]} 32... Rcxd2 {[%clk 0:00:03.2]} 33. Rxd2 {[%clk
0:00:14.8]} 33... Rxd2 {[%clk 0:00:02.4]} 34. Rxf4 {[%clk 0:00:15.5]} 1-0

[Event "Early-Titled-Tuesday-Blitz-February-06-2024"]
[Site "Chess.com"]
[Date "2024.02.06"]
[Round "2"]
[White "snowlord"]
[Black "TimGrutter03"]
[Result "1-0"]
[WhiteElo "2873"]
[BlackElo "2595"]
[TimeControl "180+1"]
[EndTime "8:17:27 PST"]
[Termination "snowlord won by resignation"]

1. e4 {[%clk 0:02:57.2]} 1... c5 {[%clk 0:02:57.2]} 2. Nf3 {[%clk 0:02:57.3]}
2... d6 {[%clk 0:02:55.6]} 3. c3 {[%clk 0:02:57.7]} 3... Nf6 {[%clk 0:02:55.4]}
4. Be2 {[%clk 0:02:58.1]} 4... g6 {[%clk 0:02:53]} 5. O-O {[%clk 0:02:57.1]}
5... Bg7 {[%clk 0:02:53]} 6. Bb5+ {[%clk 0:02:57.4]} 6... Bd7 {[%clk 0:02:52.2]}
7. Bxd7+ {[%clk 0:02:57.6]} 7... Nbxd7 {[%clk 0:02:52]} 8. Re1 {[%clk
0:02:58.5]} 8... e5 {[%clk 0:02:51]} 9. d4 {[%clk 0:02:58.7]} 9... O-O {[%clk
0:02:47.1]} 10. dxe5 {[%clk 0:02:56.9]} 10... Nxe5 {[%clk 0:02:44.6]} 11. Nxe5
{[%clk 0:02:57.1]} 11... dxe5 {[%clk 0:02:45.3]} 12. Nd2 {[%clk 0:02:57.7]}
12... b5 {[%clk 0:02:43.1]} 13. a4 {[%clk 0:02:57.1]} 13... a6 {[%clk
0:02:42.8]} 14. Qe2 {[%clk 0:02:48.5]} 14... Qb6 {[%clk 0:02:38.3]} 15. Nf3
{[%clk 0:02:44.5]} 15... Rfe8 {[%clk 0:02:32.1]} 16. axb5 {[%clk 0:02:32]} 16...
axb5 {[%clk 0:02:00.3]} 17. Rxa8 {[%clk 0:02:30.7]} 17... Rxa8 {[%clk
0:02:01.2]} 18. Nxe5 {[%clk 0:02:31.2]} 18... Re8 {[%clk 0:01:47.4]} 19. f4
{[%clk 0:02:30.8]} 19... c4+ {[%clk 0:01:44]} 20. Be3 {[%clk 0:02:28]} 20... Qb7
{[%clk 0:01:41.2]} 21. Bd4 {[%clk 0:02:28.3]} 21... Nd7 {[%clk 0:01:02.2]} 22.
Nf3 {[%clk 0:02:27.4]} 22... Bxd4+ {[%clk 0:00:53.6]} 23. cxd4 {[%clk
0:02:11.9]} 23... Qc6 {[%clk 0:00:49]} 24. h3 {[%clk 0:01:19]} 24... b4 {[%clk
0:00:47.6]} 25. Ne5 {[%clk 0:01:08.5]} 25... Nxe5 {[%clk 0:00:46.9]} 26. fxe5
{[%clk 0:01:09.4]} 26... c3 {[%clk 0:00:42.6]} 27. Rc1 {[%clk 0:00:53.7]} 27...
Rc8 {[%clk 0:00:10.5]} 28. bxc3 {[%clk 0:00:52.7]} 28... bxc3 {[%clk 0:00:11.4]}
29. d5 {[%clk 0:00:50.3]} 29... Qb6+ {[%clk 0:00:10.6]} 30. Qf2 {[%clk
0:00:49.9]} 30... Qb8 {[%clk 0:00:10.1]} 31. Qf6 {[%clk 0:00:19.6]} 31... Qb2
{[%clk 0:00:06.4]} 32. Rf1 {[%clk 0:00:17.2]} 32... Rf8 {[%clk 0:00:06.9]} 33.
e6 {[%clk 0:00:17.2]} 33... Qb7 {[%clk 0:00:07.5]} 34. e7 {[%clk 0:00:16]} 34...
Qa7+ {[%clk 0:00:06]} 35. Kh1 {[%clk 0:00:15.8]} 1-0